fUSD/lending_fUSD_20240125
["ID","MTS","AMOUNT","RATE_DAILY","PERIOD"]
[312738346,1706190764302,-500.0,0.00053424,31]
[312738347,1706190764311,-192.2,0.00053424,31]
[312738348,1706190764321,-521.96,0.00053424,31]
[312738349,1706190764331,-500.0,0.00053424,31]
[312738350,1706190764341,-500.0,0.00053424,31]
[312738351,1706190764352,-713.07,0.00053424,31]
[312738352,1706190764361,-500.0,0.00053424,31]
[312738353,1706190764370,-500.0,0.00053424,31]
[312738354,1706190764380,-500.0,0.00053424,31]
[312738355,1706190764390,-1043.27,0.00053424,31]
[312738356,1706190764399,-500.0,0.00053424,31]
[312738357,1706190764408,-500.0,0.00053424,31]
[312738358,1706190764417,-219.55,0.00053424,31]
[312738359,1706190764427,-252.96,0.00053424,31]
[312738360,1706190764436,-500.0,0.00053424,31]
[312738361,1706190764446,-1210.44,0.00053424,31]
[312738362,1706190764455,-500.0,0.00053424,31]
[312738363,1706190764466,-500.0,0.00053424,31]
[312738364,1706190764476,-500.0,0.00053424,31]
[312738365,1706190764485,-549.8,0.00053424,20]
[312738366,1706190764495,-747.16,0.00053424,31]
[312738367,1706190764504,-500.0,0.00053424,2]
[312738368,1706190764514,-500.0,0.00053424,31]
[312738369,1706190764524,-1473.87,0.00053424,31]
[312738370,1706190764533,-1598.0,0.00053424,31]
[312738371,1706190764543,-2335.03,0.00053424,31]
[312738372,1706190764553,-500.0,0.00053424,31]
[312738373,1706190764563,-516.66,0.00053424,31]
[312738374,1706190764572,-378.42288815,0.00053424,31]
[312738375,1706190764581,-562.17,0.00053424,31]
[312738376,1706190764591,-500.0,0.00053424,31]
[312738377,1706190764600,-500.0,0.00053424,31]
[312738378,1706190764610,-938.7,0.00053424,2]
[312738379,1706190764620,-500.0,0.00053424,31]
[312738380,1706190764630,-619.45,0.00053424,31]
[312738381,1706190764639,-500.0,0.00053425,120]
[312738382,1706190764648,-277.93315111,0.00053447,30]
[312738383,1706190764658,-169.0,0.000535,120]
[312738384,1706190764667,-500.0,0.00053561,31]
[312738385,1706190764676,-500.0,0.00053561,31]
[312738386,1706190764685,-500.0,0.00053561,31]
[312738387,1706190764695,-2058.77,0.00053561,5]
[312738388,1706190764704,-612.0,0.0005359,2]
[312738389,1706190764713,-233.17974244,0.00053606,14]
[312738390,1706190764723,-500.0,0.00053642,120]
[312738391,1706190764732,-500.0,0.00053653,120]
[312738392,1706190764741,-277.93315111,0.00053673,31]
[312738393,1706190764751,-196.48541005,0.00053698,2]
[312738394,1706190764761,-196.48541005,0.00053698,2]
[312738395,1706190764770,-156.39082578,0.00053698,4]
[312738396,1706190764780,-500.0,0.00053698,31]
[312738397,1706190764789,-500.0,0.00053698,31]
[312738398,1706190764798,-500.0,0.00053698,31]
[312738399,1706190764807,-571.32998778,0.00053698,31]
[312738400,1706190764817,-1740.58,0.00053698,2]
[312738401,1706190764826,-694.02,0.00053698,31]
[312738402,1706190764835,-500.0,0.00053698,31]
[312738403,1706190764844,-500.0,0.00053698,31]
[312738404,1706190764855,-500.0,0.00053698,31]
[312738405,1706190764865,-500.0,0.00053698,31]
[312738406,1706190764875,-640.01759903,0.00053698,31]
[312738407,1706190764885,-500.0,0.00053698,31]
[312738408,1706190764894,-500.0,0.00053698,31]
[312738409,1706190764903,-500.0,0.00053698,31]
[312738410,1706190764912,-500.0,0.00053698,31]
[312738411,1706190764922,-500.0,0.00053698,31]
[312738412,1706190764931,-424.81762453,0.00053698,31]
[312738413,1706190764941,-500.0,0.00053698,31]
[312738414,1706190764950,-899.54,0.00053698,31]
[312738415,1706190764959,-500.0,0.00053698,31]
[312738416,1706190764968,-942.26,0.00053698,120]
[312738417,1706190764978,-500.0,0.00053698,31]
[312738418,1706190764987,-656.21,0.00053698,2]
[312738419,1706190764997,-609.70728522,0.00053698,31]
[312738420,1706190765007,-542.69,0.00053698,7]
[312738421,1706190765018,-1037.12,0.00053698,31]
[312738422,1706190765031,-500.0,0.00053698,31]
[312738423,1706190765041,-500.0,0.00053698,31]
[312738424,1706190765051,-500.0,0.00053698,31]
[312738425,1706190765060,-500.0,0.00053698,31]
[312738426,1706190765070,-500.0,0.00053698,31]
[312738427,1706190765080,-500.0,0.00053698,31]
[312738428,1706190765090,-500.0,0.00053698,31]
[312738429,1706190765099,-1302.92,0.00053698,7]
[312738430,1706190765109,-500.0,0.00053698,31]
[312738431,1706190765119,-500.0,0.00053698,31]
[312738432,1706190765131,-500.0,0.00053698,31]
[312738433,1706190765140,-500.0,0.00053698,31]
[312738434,1706190765150,-1106.47,0.00053698,31]
[312738435,1706190765159,-500.0,0.00053698,31]
[312738436,1706190765168,-553.31,0.00053698,31]
[312738437,1706190765178,-500.0,0.00053698,31]
[312738438,1706190765187,-582.46,0.00053698,31]
[312738439,1706190765196,-658.74,0.00053698,31]
[312738440,1706190765205,-500.0,0.00053698,31]
[312738441,1706190765215,-296.19192474,0.00053698,31]
[312738442,1706190765224,-903.12,0.00053698,31]
[312738443,1706190765234,-919.78,0.00053698,31]
[312738444,1706190765243,-500.0,0.00053698,31]
[312738445,1706190765254,-282.63036798,0.00053698,31]
[312738446,1706190765263,-500.0,0.00053698,31]
[312738447,1706190765273,-791.89,0.00053698,31]
[312738448,1706190765282,-500.0,0.00053698,31]
[312738449,1706190765292,-500.0,0.00053698,31]
[312738450,1706190765301,-500.0,0.00053698,31]
[312738451,1706190765311,-518.45,0.00053698,31]
[312738452,1706190765321,-500.0,0.00053698,31]
[312738453,1706190765331,-192.2,0.00053698,31]
[312738454,1706190765342,-521.96,0.00053698,31]
[312738455,1706190765351,-500.0,0.00053698,31]
[312738456,1706190765361,-500.0,0.00053698,31]
[312738457,1706190765370,-713.07,0.00053698,31]
[312738458,1706190765382,-500.0,0.00053698,31]
[312738459,1706190765391,-263.29690019,0.00053698,31]
[312738460,1706190765400,-610.85177889,0.00053698,31]
[312738461,1706190765410,-1043.27,0.00053698,31]
[312738462,1706190765419,-249.76759004,0.00053698,31]
[312738463,1706190765429,-500.0,0.00053698,31]
[312738464,1706190765439,-500.0,0.00053698,31]
[312738465,1706190765449,-1210.44,0.00053698,31]
[312738466,1706190765459,-500.0,0.00053698,31]
[312738467,1706190765468,-462.41854678,0.00053698,31]
[312738468,1706190765477,-500.0,0.00053698,31]
[312738469,1706190765487,-549.8,0.00053698,20]
[312738470,1706190765496,-747.16,0.00053698,31]
[312738471,1706190765505,-350.96431865,0.00053698,2]
[312738472,1706190765515,-500.0,0.00053698,31]
[312738473,1706190765524,-1473.87,0.00053698,31]
[312738474,1706190765535,-1598.0,0.00053698,31]
[312738475,1706190765545,-2335.03,0.00053698,31]
[312738476,1706190765555,-500.0,0.00053698,31]
[312738477,1706190765565,-516.66,0.00053698,31]
[312738478,1706190765574,-562.17,0.00053698,31]
[312738479,1706190765583,-500.0,0.00053698,31]
[312738480,1706190765593,-598.43579509,0.00053698,31]
[312738481,1706190765603,-938.7,0.00053698,2]
[312738482,1706190765613,-500.0,0.00053698,31]
[312738483,1706190765622,-619.45,0.00053698,31]
[312738484,1706190765633,-500.0,0.000537,2]
[312738485,1706190765642,-500.0,0.00053835,31]
[312738486,1706190765652,-500.0,0.00053835,31]
[312738487,1706190765662,-253.28,0.00053835,31]
[312738488,1706190765672,-2058.77,0.00053835,5]
[312738489,1706190765682,-500.0,0.00053881,120]
[312738490,1706190765691,-523.0,0.0005389,2]
[312738491,1706190765701,-277.93315111,0.000539,31]
[312738492,1706190765710,-500.0,0.00053944,120]
[312738493,1706190765720,-500.0,0.00053972,31]
[312738494,1706190765729,-500.0,0.00053972,31]
[312738495,1706190765739,-500.0,0.00053972,31]
[312738496,1706190765749,-1740.58,0.00053972,2]
[312738497,1706190765759,-694.02,0.00053972,31]
[312738498,1706190765768,-500.0,0.00053972,31]
[312738499,1706190765777,-443.35,0.00053972,31]
[312738500,1706190765787,-500.0,0.00053972,31]
[312738501,1706190765796,-500.0,0.00053972,31]
[312738502,1706190765805,-500.0,0.00053972,31]
[312738503,1706190765815,-500.0,0.00053972,31]
[312738504,1706190765825,-500.0,0.00053972,31]
[312738505,1706190765834,-500.0,0.00053972,31]
[312738506,1706190765845,-477.93793399,0.00053972,31]
[312738507,1706190765854,-500.0,0.00053972,31]
[312738508,1706190765864,-899.54,0.00053972,31]
[312738509,1706190765875,-443.35435287,0.00053972,31]
[312738510,1706190765884,-942.26,0.00053972,120]
[312738511,1706190765894,-500.0,0.00053972,31]
[312738512,1706190765903,-656.21,0.00053972,2]
[312738513,1706190765913,-542.69,0.00053972,7]
[312738514,1706190765922,-1037.12,0.00053972,31]
[312738515,1706190765932,-500.0,0.00053972,31]
[312738516,1706190765941,-500.0,0.00053972,31]
[312738517,1706190765951,-440.02160132,0.00053972,31]
[312738518,1706190765960,-500.0,0.00053972,31]
[312738519,1706190766080,-500.0,0.00053972,31]
[312738520,1706190766090,-500.0,0.00053972,31]
[312738521,1706190766100,-500.0,0.00053972,31]
[312738522,1706190766112,-1302.92,0.00053972,7]
[312738523,1706190766121,-500.0,0.00053972,31]
[312738524,1706190766132,-500.0,0.00053972,31]
[312738525,1706190766142,-500.0,0.00053972,31]
[312738526,1706190766151,-500.0,0.00053972,31]
[312738527,1706190766161,-1106.47,0.00053972,31]
[312738528,1706190766170,-500.0,0.00053972,31]
[312738529,1706190766179,-553.31,0.00053972,31]
[312738530,1706190766189,-500.0,0.00053972,31]
[312738531,1706190766200,-582.46,0.00053972,31]
[312738532,1706190766211,-658.74,0.00053972,31]
[312738533,1706190766220,-349.31536533,0.00053972,31]
[312738534,1706190766230,-903.12,0.00053972,31]
[312738535,1706190766239,-919.78,0.00053972,31]
[312738536,1706190766249,-500.0,0.00053972,31]
[312738537,1706190766259,-497.37253927,0.00053972,31]
[312738538,1706190766269,-791.89,0.00053972,31]
[312738539,1706190766279,-500.0,0.00053972,31]
[312738540,1706190766288,-500.0,0.00053972,31]
[312738541,1706190766297,-500.0,0.00053972,31]
[312738542,1706190766307,-518.45,0.00053972,31]
[312738543,1706190766316,-500.0,0.00053972,31]
[312738544,1706190766326,-192.2,0.00053972,31]
[312738545,1706190766336,-521.96,0.00053972,31]
[312738546,1706190766345,-500.0,0.00053972,31]
[312738547,1706190766355,-500.0,0.00053972,31]
[312738548,1706190766365,-713.07,0.00053972,31]
[312738549,1706190766375,-500.0,0.00053972,31]
[312738550,1706190766385,-1043.27,0.00053972,31]
[312738551,1706190766394,-500.0,0.00053972,31]
[312738552,1706190766403,-203.5655785,0.00053972,31]
[312738553,1706190766413,-1210.44,0.00053972,31]
[312738554,1706190766422,-500.0,0.00053972,31]
[312738555,1706190766431,-500.0,0.00053972,31]
[312738556,1706190766440,-549.8,0.00053972,20]
[312738557,1706190766449,-747.16,0.00053972,31]
[312738558,1706190766459,-500.0,0.00053972,31]
[312738559,1706190766468,-1473.87,0.00053972,31]
[312738560,1706190766477,-1598.0,0.00053972,31]
[312738561,1706190766487,-2335.03,0.00053972,31]
[312738562,1706190766496,-500.0,0.00053972,31]
[312738563,1706190766506,-516.66,0.00053972,31]
[312738564,1706190766516,-562.17,0.00053972,31]
[312738565,1706190766525,-208.2,0.00053972,31]
[312738566,1706190766535,-938.7,0.00053972,2]
[312738567,1706190766545,-500.0,0.00053972,31]
[312738568,1706190766554,-151.61103293,0.00053972,2]
[312738569,1706190766564,-170.0,0.00053973,3]
[312738570,1706190766574,-192.0,0.00053973,3]
[312738571,1706190766583,-200.0,0.00053987,53]
[312738572,1706190766592,-200.0,0.00053987,43]
[312738573,1706190766602,-200.0,0.00053987,33]
[312738574,1706190766611,-690.0,0.0005399,2]
[312738575,1706190766621,-5000.0,0.00054,2]
[312738576,1706190766634,-300.0,0.00054,55]
[312738577,1706190766645,-169.0,0.00054,120]
[312738578,1706190766655,-269.78694006,0.00054,7]
[312738579,1706190766664,-200.0,0.00054027,120]
[312738580,1706190766675,-1000.0,0.00054047,2]
[312738581,1706190766685,-500.0,0.00054109,31]
[312738582,1706190766696,-500.0,0.00054109,31]
[312738583,1706190766706,-2058.77,0.00054109,5]
[312738584,1706190766715,-500.0,0.0005411,120]
[312738585,1706190766725,-607.37885058,0.00054154,14]
[312738586,1706190766735,-499.0,0.0005419,2]
[312738587,1706190766745,-500.0,0.00054245,120]
[312738588,1706190766755,-500.0,0.00054246,31]
[312738589,1706190766765,-500.0,0.00054246,31]
[312738590,1706190766774,-500.0,0.00054246,31]
[312738591,1706190766785,-1740.58,0.00054246,2]
[312738592,1706190766795,-694.02,0.00054246,31]
[312738593,1706190766804,-500.0,0.00054246,31]
[312738594,1706190766815,-500.0,0.00054246,31]
[312738595,1706190766825,-500.0,0.00054246,31]
[312738596,1706190766835,-500.0,0.00054246,31]
[312738597,1706190766845,-500.0,0.00054246,31]
[312738598,1706190766855,-500.0,0.00054246,31]
[312738599,1706190766865,-500.0,0.00054246,31]
[312738600,1706190766875,-500.0,0.00054246,31]
[312738601,1706190766884,-899.54,0.00054246,31]
[312738602,1706190766894,-942.26,0.00054246,120]
[312738603,1706190766905,-500.0,0.00054246,31]
[312738604,1706190766915,-656.21,0.00054246,2]
[312738605,1706190766924,-542.69,0.00054246,7]
[312738606,1706190766934,-1037.12,0.00054246,31]
[312738607,1706190766944,-500.0,0.00054246,31]
[312738608,1706190766954,-500.0,0.00054246,31]
[312738609,1706190766964,-500.0,0.00054246,31]
[312738610,1706190766974,-500.0,0.00054246,31]
[312738611,1706190766984,-284.19911707,0.00054246,31]
[312738612,1706190766994,-500.0,0.00054246,31]
[312738613,1706190767003,-1302.92,0.00054246,7]
[312738614,1706190767013,-500.0,0.00054246,31]
[312738615,1706190767024,-500.0,0.00054246,31]
[312738616,1706190767038,-500.0,0.00054246,31]
[312738617,1706190767048,-500.0,0.00054246,31]
[312738618,1706190767058,-1106.47,0.00054246,31]
[312738619,1706190767069,-578.26675046,0.00054246,31]
[312738620,1706190767078,-553.31,0.00054246,31]
[312738621,1706190767088,-500.0,0.00054246,31]
[312738622,1706190767099,-582.46,0.00054246,31]
[312738623,1706190767109,-658.74,0.00054246,31]
[312738624,1706190767120,-903.12,0.00054246,31]
[312738625,1706190767130,-919.78,0.00054246,31]
[312738626,1706190767140,-500.0,0.00054246,31]
[312738627,1706190767150,-791.89,0.00054246,31]
[312738628,1706190767161,-500.0,0.00054246,31]
[312738629,1706190767171,-500.0,0.00054246,31]
[312738630,1706190767180,-500.0,0.00054246,31]
[312738631,1706190767191,-518.45,0.00054246,31]
[312738632,1706190767201,-500.0,0.00054246,31]
[312738633,1706190767211,-192.2,0.00054246,31]
[312738634,1706190767221,-521.96,0.00054246,31]
[312738635,1706190767231,-416.76251849,0.00054246,31]
[312738636,1706190767241,-500.0,0.00054246,31]
[312738637,1706190767251,-713.07,0.00054246,31]
[312738638,1706190767261,-550.7439596,0.00054246,31]
[312738639,1706190767271,-1043.27,0.00054246,31]
[312738640,1706190767281,-500.0,0.00054246,31]
[312738641,1706190767291,-1210.44,0.00054246,31]
[312738642,1706190767300,-500.0,0.00054246,31]
[312738643,1706190767310,-500.0,0.00054246,31]
[312738644,1706190767319,-549.8,0.00054246,20]
[312738645,1706190767329,-747.16,0.00054246,31]
[312738646,1706190767339,-500.0,0.00054246,31]
[312738647,1706190767349,-1473.87,0.00054246,31]
[312738648,1706190767358,-1598.0,0.00054246,31]
[312738649,1706190767368,-2335.03,0.00054246,31]
[312738650,1706190767379,-500.0,0.00054246,31]
[312738651,1706190767389,-516.66,0.00054246,31]
[312738652,1706190767399,-562.17,0.00054246,31]
[312738653,1706190767409,-938.7,0.00054246,2]
[312738654,1706190767420,-500.0,0.00054246,31]
[312738655,1706190767430,-200.0,0.00054301,120]
[312738656,1706190767439,-150.0,0.00054319,2]
[312738657,1706190767449,-500.0,0.00054338,120]
[312738658,1706190767459,-500.0,0.00054383,31]
[312738659,1706190767468,-500.0,0.00054383,31]
[312738660,1706190767478,-2058.77,0.00054383,5]
[312738661,1706190767488,-496.0,0.0005449,2]
[312738662,1706190767498,-152.0,0.000545,120]
[312738663,1706190767508,-169.0,0.000545,120]
[312738664,1706190767517,-500.0,0.0005452,120]
[312738665,1706190767526,-500.0,0.0005452,120]
[312738666,1706190767536,-500.0,0.0005452,120]
[312738667,1706190767546,-1740.58,0.0005452,2]
[312738668,1706190767556,-694.02,0.0005452,120]
[312738669,1706190767565,-500.0,0.0005452,120]
[312738670,1706190767574,-500.0,0.0005452,120]
[312738671,1706190767584,-634.7680001,0.0005452,120]
[312738672,1706190767594,-500.0,0.0005452,120]
[312738673,1706190767604,-500.0,0.0005452,120]
[312738674,1706190767614,-500.0,0.0005452,120]
[312738675,1706190767623,-500.0,0.0005452,120]
[312738676,1706190767635,-500.0,0.0005452,120]
[312738677,1706190767645,-899.54,0.0005452,120]
[312738678,1706190767655,-942.26,0.0005452,120]
[312738679,1706190767665,-500.0,0.0005452,120]
[312738680,1706190767675,-656.21,0.0005452,2]
[312738681,1706190767685,-542.69,0.0005452,7]
[312738682,1706190767695,-1037.12,0.0005452,120]
[312738683,1706190767705,-500.0,0.0005452,120]
[312738684,1706190767714,-500.0,0.0005452,120]
[312738685,1706190767724,-313.54526398,0.0005452,120]
[312738686,1706190767734,-500.0,0.0005452,120]
[312738687,1706190767744,-614.11,0.0005452,120]
[312738688,1706190767754,-1302.92,0.0005452,7]
[312738689,1706190767764,-631.20910772,0.0005452,120]
[312738690,1706190767774,-500.0,0.0005452,120]
[312738691,1706190767783,-500.0,0.0005452,120]
[312738692,1706190767792,-388.46122987,0.0005452,120]
[312738693,1706190767802,-1106.47,0.0005452,120]
[312738694,1706190767812,-553.31,0.0005452,120]
[312738695,1706190767823,-500.0,0.0005452,120]
[312738696,1706190767833,-582.46,0.0005452,120]
[312738697,1706190767843,-658.74,0.0005452,120]
[312738698,1706190767854,-903.12,0.0005452,120]
[312738699,1706190767864,-919.78,0.0005452,120]
[312738700,1706190767874,-500.0,0.0005452,120]
[312738701,1706190767886,-791.89,0.0005452,120]
[312738702,1706190767896,-500.0,0.0005452,120]
[312738703,1706190767906,-500.0,0.0005452,120]
[312738704,1706190767916,-500.0,0.0005452,120]
[312738705,1706190768039,-518.45,0.0005452,120]
[312738706,1706190768049,-500.0,0.0005452,120]
[312738707,1706190768059,-192.2,0.0005452,120]
[312738708,1706190768070,-521.96,0.0005452,120]
[312738709,1706190768080,-500.0,0.0005452,120]
[312738710,1706190768090,-713.07,0.0005452,120]
[312738711,1706190768100,-1043.27,0.0005452,120]
[312738712,1706190768110,-163.32528376,0.0005452,120]
[312738713,1706190768120,-1210.44,0.0005452,120]
[312738714,1706190768130,-287.18179965,0.0005452,120]
[312738715,1706190768139,-500.0,0.0005452,120]
[312738716,1706190768148,-549.8,0.0005452,20]
[312738717,1706190768157,-747.16,0.0005452,120]
[312738718,1706190768167,-500.0,0.0005452,120]
[312738719,1706190768176,-1473.87,0.0005452,120]
[312738720,1706190768185,-1598.0,0.0005452,120]
[312738721,1706190768194,-2335.03,0.0005452,120]
[312738722,1706190768204,-500.0,0.0005452,120]
[312738723,1706190768214,-516.66,0.0005452,120]
[312738724,1706190768223,-562.17,0.0005452,120]
[312738725,1706190768233,-938.7,0.0005452,2]
[312738726,1706190768243,-500.0,0.0005452,120]
[312738727,1706190768252,-500.0,0.00054546,120]
[312738728,1706190768262,-500.0,0.00054566,120]
[312738729,1706190768272,-153.40299264,0.00054583,62]
[312738730,1706190768282,-295.43526974,0.00054615,60]
[312738731,1706190768292,-500.0,0.00054657,120]
[312738732,1706190768302,-500.0,0.00054657,120]
[312738733,1706190768311,-2058.77,0.00054657,5]
[312738734,1706190768321,-569.0,0.0005469,2]
[312738735,1706190768331,-2500.0,0.0005479,120]
[312738736,1706190768340,-2500.0,0.0005479,120]
[312738737,1706190768349,-2500.0,0.0005479,120]
[312738738,1706190768358,-2500.0,0.0005479,120]
[312738739,1706190768367,-161.83139284,0.00054791,2]
[312738740,1706190768378,-150.0,0.00054793,14]
[312738741,1706190768388,-150.0,0.00054793,14]
[312738742,1706190768398,-500.0,0.00054794,120]
[312738743,1706190768408,-666.0,0.00054794,2]
[312738744,1706190768418,-500.0,0.00054794,120]
[312738745,1706190768429,-500.0,0.00054794,120]
[312738746,1706190768438,-1740.58,0.00054794,2]
[312738747,1706190768449,-694.02,0.00054794,120]
[312738748,1706190768458,-500.0,0.00054794,120]
[312738749,1706190768467,-324.91040574,0.00054794,120]
[312738750,1706190768476,-500.0,0.00054794,120]
[312738751,1706190768485,-500.0,0.00054794,120]
[312738752,1706190768494,-500.0,0.00054794,120]
[312738753,1706190768504,-500.0,0.00054794,120]
[312738754,1706190768513,-500.0,0.00054794,120]
[312738755,1706190768522,-500.0,0.00054794,120]
[312738756,1706190768531,-500.0,0.00054794,120]
[312738757,1706190768541,-500.0,0.00054794,120]
[312738758,1706190768550,-523.27332846,0.00054794,120]
[312738759,1706190768559,-540.72807404,0.00054794,120]
[312738760,1706190768568,-500.0,0.00054794,120]
[312738761,1706190768578,-500.0,0.00054794,120]
[312738762,1706190768588,-500.0,0.00054794,120]
[312738763,1706190768598,-500.0,0.00054794,120]
[312738764,1706190768608,-899.54,0.00054794,120]
[312738765,1706190768618,-942.26,0.00054794,120]
[312738766,1706190768629,-500.0,0.00054794,120]
[312738767,1706190768639,-656.21,0.00054794,2]
[312738768,1706190768648,-542.69,0.00054794,7]
[312738769,1706190768658,-1846.3646639,0.00054794,120]
[312738770,1706190768668,-1037.12,0.00054794,120]
[312738771,1706190768677,-537.87148772,0.00054794,120]
[312738772,1706190768687,-450.24226774,0.00054794,120]
[312738773,1706190768696,-500.0,0.00054794,120]
[312738774,1706190768706,-1302.92,0.00054794,7]
[312738775,1706190768715,-500.0,0.00054794,120]
[312738776,1706190768725,-500.0,0.00054794,120]
[312738777,1706190768735,-1106.47,0.00054794,120]
[312738778,1706190768745,-553.31,0.00054794,120]
[312738779,1706190768755,-500.0,0.00054794,120]
[312738780,1706190768765,-582.46,0.00054794,120]
[312738781,1706190768775,-658.74,0.00054794,120]
[312738782,1706190768784,-903.12,0.00054794,120]
[312738783,1706190768794,-919.78,0.00054794,120]
[312738784,1706190768804,-299.55331806,0.00054794,120]
[312738785,1706190768813,-791.89,0.00054794,120]
[312738786,1706190768822,-500.0,0.00054794,120]
[312738787,1706190768831,-500.0,0.00054794,120]
[312738788,1706190768841,-500.0,0.00054794,120]
[312738789,1706190768850,-196.74593414,0.00054794,120]
[312738790,1706190768860,-518.45,0.00054794,120]
[312738791,1706190768870,-500.0,0.00054794,120]
[312738792,1706190768880,-192.2,0.00054794,120]
[312738793,1706190768889,-521.96,0.00054794,120]
[312738794,1706190768899,-387.02835768,0.00054794,120]
[312738795,1706190768909,-713.07,0.00054794,120]
[312738796,1706190768918,-1043.27,0.00054794,120]
[312738797,1706190768927,-1000.0,0.00054794,120]
[312738798,1706190768936,-1000.0,0.00054794,120]
[312738799,1706190768945,-1000.0,0.00054794,120]
[312738800,1706190768954,-1000.0,0.00054794,120]
[312738801,1706190768964,-1000.0,0.00054794,120]
[312738802,1706190768973,-1000.0,0.00054794,120]
[312738803,1706190768982,-1000.01048358,0.00054794,120]
[312738804,1706190768992,-526.64697238,0.00054794,120]
[312738805,1706190769002,-1210.44,0.00054794,120]
[312738806,1706190769011,-500.0,0.00054794,120]
[312738807,1706190769021,-549.8,0.00054794,20]
[312738808,1706190769034,-747.16,0.00054794,120]
[312738809,1706190769044,-457.4,0.00054794,120]
[312738810,1706190769053,-1473.87,0.00054794,120]
[312738811,1706190769064,-2954.82,0.00054794,120]
[312738812,1706190769073,-2954.82,0.00054794,120]
[312738813,1706190769082,-2954.82,0.00054794,120]
[312738814,1706190769092,-2954.82,0.00054794,120]
[312738815,1706190769102,-2954.82,0.00054794,120]
[312738816,1706190769112,-2954.82,0.00054794,120]
[312738817,1706190769121,-2954.82,0.00054794,120]
[312738818,1706190769132,-2954.82,0.00054794,120]
[312738819,1706190769141,-2954.82,0.00054794,120]
[312738820,1706190769150,-2954.82,0.00054794,120]
[312738821,1706190769159,-2954.82,0.00054794,120]
[312738822,1706190769168,-1598.0,0.00054794,120]
[312738823,1706190769177,-2954.82,0.00054794,120]
[312738824,1706190769186,-2954.82,0.00054794,120]
[312738825,1706190769196,-2954.82,0.00054794,120]
[312738826,1706190769206,-2954.82,0.00054794,120]
[312738827,1706190769215,-2954.82,0.00054794,120]
[312738828,1706190769225,-2954.82,0.00054794,120]
[312738829,1706190769234,-2954.82,0.00054794,120]
[312738830,1706190769243,-2954.82,0.00054794,120]
[312738831,1706190769252,-2954.82,0.00054794,120]
[312738832,1706190769261,-2954.82,0.00054794,120]
[312738833,1706190769270,-2335.03,0.00054794,120]
[312738834,1706190769280,-177.12161533,0.00054794,120]
[312738835,1706190769289,-516.66,0.00054794,120]
[312738836,1706190769298,-562.17,0.00054794,120]
[312738837,1706190769307,-938.7,0.00054794,2]
[312738838,1706190769317,-500.0,0.00054794,120]
[312738839,1706190769329,-500.0,0.00054795,120]
[312738840,1706190769339,-2782.0,0.000548,120]
[312738841,1706190769348,-8000.0,0.000548,120]
[312738842,1706190769358,-1000.0,0.00054808,120]
[312738843,1706190769367,-1300.0,0.00054808,120]
[312738844,1706190769376,-1690.0,0.00054808,120]
[312738845,1706190769385,-2197.0,0.00054808,120]